Cogmind - Beta 17.1 @@@ ROGUE MODE // 2026.09.11 @ 01:59:10 Player: cel Result: Destroyed by L-31 Rogue with Katana Performance ------------- Evolutions (1) 500 Regions Visited (5) 1000 Robots Destroyed (37) 185 Value Destroyed (577) 577 Prototype IDs (23) 460 Alien Tech Used (0) 0 Bonus (300) 300 TOTAL SCORE: 3022 Bonus ------- Aligned with FarCom 300 Cogmind --------- Core Integrity 0/400 Matter 201/300 Energy 20/250 System Corruption 12% Temperature Cool (0) Movement Walking (260) Ox2 Location -8/Mines Parts ------- > --- POWER (1) -------- Ion Engine > --- PROPULSION (2) --- Aluminum Leg > --- UTILITY (4) ------ Small Storage Unit ECM Suite Light Armor Plating Hardened Light Armor Plating > --- WEAPON (2) ------- Light Assault Rifle Longsword +1 > --- INVENTORY (8) ---- High-capacity Battery (250) Mining Laser Peak State ------------ > --- POWER ------------ Improved Ion Engine > --- PROPULSION ------- Wheel > --- UTILITY ---------- Small Storage Unit ECM Suite Hardened Light Armor Plating Hardened Light Armor Plating > --- WEAPON ----------- Light Assault Rifle Longsword +1 > --- INVENTORY -------- Ion Engine Ion Engine Aluminum Leg High-capacity Battery Light Armor Plating Mining Laser [Rating: 18] Favorites ----------- Power Improved Ion Engine Engine Improved Ion Engine Propulsion Wheel Leg Aluminum Leg Wheel Wheel Utility Hardened Light Armor Plating Device Sensor Array Storage Small Storage Unit Protection Hardened Light Armor Plating Weapon Light Assault Rifle Ballistic Gun Light Assault Rifle Launcher Mini Grenade Launcher Special Weapon Mining Laser Slashing Weapon Longsword +1 Build | -11 -10 -9 -9 -9 -8 ------- Run | Yrd Mat Mat Min Exi Min Slots Evolved 2 | . . 2 . . . Power . | . . . . . . Propulsion . | . . . . . . Utility 2 | . . 2 . . . Weapon . | . . . . . . Parts Attached 21 | 6 3 6 1 . 5 Power 3 | 1 . 1 . . 1 Engine 3 | 1 . 1 . . 1 Core . | . . . . . . Reactor . | . . . . . . Propulsion 5 | 2 . 2 . . 1 Treads . | . . . . . . Leg 3 | 2 . . . . 1 Wheel 2 | . . 2 . . . Hover . | . . . . . . Flight . | . . . . . . Utility 6 | 1 1 2 . . 2 Device 2 | . 1 . . . 1 Storage 1 | 1 . . . . . Processor . | . . . . . . Hackware . | . . . . . . Protection 3 | . . 2 . . 1 Artifact . | . . . . . . Weapon 7 | 2 2 1 1 . 1 Energy Gun . | . . . . . . Energy Cannon . | . . . . . . Ballistic Gun 2 | 2 . . . . . Ballistic Cannon . | . . . . . . Launcher 3 | . 1 1 1 . . Special Weapon 1 | . 1 . . . . Impact Weapon . | . . . . . . Slashing Weapon 1 | . . . . . 1 Piercing Weapon . | . . . . . . Special Melee Weapon . | . . . . . . Unidentified Prototypes . | . . . . . . Parts Lost 7 | . . 3 . . 4 Power . | . . . . . . Propulsion 3 | . . 2 . . 1 Utility 2 | . . . . . 2 Weapon 2 | . . 1 . . 1 Highest Loss Streak 3 | . . 2 . . 3 To Critical Strikes . | . . . . . . Average Backups 7 | 2 5 7 8 7 7 Power 1 | . 1 2 2 2 1 Propulsion . | . . . 1 1 1 Utility 1 | . . 1 2 2 2 Weapon 2 | 1 2 2 2 1 1 Tool/Special . | . . . . . . Unused Backups 8 | . . 3 2 2 1 Power 2 | . . 1 1 . . Propulsion 1 | . . 1 . . . Utility 1 | . . . . . 1 Weapon 3 | . . 1 1 1 . Tool/Special 1 | . . . . 1 . Average Slot Usage (%) 93 | . 85 90 100 100 92 Engine 11 | . 14 11 11 11 10 Leg 10 | . 28 18 . . . Wheel 11 | . . 1 22 22 16 Device 9 | . . 11 11 11 17 Storage 11 | . 14 11 11 11 11 Protection 14 | . . 14 22 22 15 Ballistic Gun 12 | . 19 11 11 11 9 Launcher 8 | . 3 7 11 11 6 Special Weapon 2 | . 5 3 . . 1 Peak Build Rating 18 | 6 7 13 13 14 18 Average Rating 10 | 4 6 10 13 13 14 On Entrance 8 | . 6 7 13 13 14 Avg Prop Armor Cover (%) . | . . . . . . Naked Turns . | . . . . . . Heaviest Build 28 | 13 16 28 25 25 28 Greatest Support 20 | 20 20 20 20 20 20 Greatest Overweight (x) 8 | 1 . 8 1 1 2 Average Overweight (x) . | . . . 1 1 1 Largest Inventory Capacity 8 | 8 8 8 8 8 8 Average Capacity 7 | 7 8 8 8 8 8 Most Carried 8 | 4 8 8 8 8 8 Average Carried 7 | 2 5 7 7 7 7 Final Capacity 8 | 8 8 8 8 8 8 Final Carried 8 | 2 7 8 8 8 2 Class Distribution -------------------- 93% | Mutant 6% | Skirmisher Dominant Class ---------------- Mutant | -10/Materials Mutant | -9/Materials Mutant | -9/Mines Mutant | -9/Exiles Skirmisher | -8/Mines Resources | -11 -10 -9 -9 -9 -8 ----------- Run | Yrd Mat Mat Min Exi Min Matter Collected 631 | 248 24 233 126 . . Remotely . | . . . . . . Salvage Created 752 | . 146 590 16 . . Parts 80 | . 14 57 9 . . Haulers Intercepted 1 | . 1 . . . . Recyclers Shooed 2 | . 2 . . . . Parts Field Recycled . | . . . . . . Retrieved Matter . | . . . . . . Parts Self-Destructed . | . . . . . . Prevented . | . . . . . . Parts Restored . | . . . . . . Kills | -11 -10 -9 -9 -9 -8 ------- Run | Yrd Mat Mat Min Exi Min Combat Hostiles Destroyed 21 | . 4 13 4 . . Guns 10 | . 2 8 . . . AOE 11 | . 2 5 4 . . Classes Destroyed 11 | . 5 5 1 . . Worker 1 | . . 1 . . . Builder 5 | . . 5 . . . Tunneler 2 | . 1 . 1 . . Hauler 1 | . 1 . . . . Recycler 5 | . . 5 . . . Watcher 3 | . 3 . . . . Swarmer 14 | . 3 8 3 . . Grunt 4 | . 1 3 . . . Brawler 1 | . . 1 . . . Sentry 1 | . . 1 . . . Assembled 1 | . . . 1 . . Best Kill Streak 16 | . 7 16 4 . . Combat Bots Only 9 | . 4 9 3 . . Max Kills in Single Turn 5 | . 2 5 3 . . Gunslinging . | . . . . . . Exploded 3 | . 1 3 2 . . Melee . | . . . . . . Uniques/NPCs Destroyed . | . . . . . . Combat | -11 -10 -9 -9 -9 -8 -------- Run | Yrd Mat Mat Min Exi Min Hostile Shots Fired 110 | . 9 79 4 . 18 Missed 29 | . 3 23 . . 3 Hits 81 | . 6 56 4 . 15 Melee 17 | . . 2 . . 15 Projectile 64 | . 6 54 4 . . Critical Strikes 4 | . . . . . 4 Damage Taken 1588 | . 119 623 34 . 812 Core 417 | . 8 83 6 . 320 Absorbed by Shields . | . . . . . . Core Remaining (%) 98 | 100 96 . . . . Volleys Fired 99 | . 21 49 5 . 24 Largest 2 | . 2 2 2 . 1 Hottest 100 | . 100 100 50 . 100 Shots Fired 116 | . 28 56 8 . 24 Gun 79 | . 12 42 5 . 20 Cannon . | . . . . . . Launcher 16 | . 5 8 3 . . Special 21 | . 11 6 . . 4 Kinetic 79 | . 12 42 5 . 20 Thermal 21 | . 11 6 . . 4 Explosive 16 | . 5 8 3 . . Electromagnetic . | . . . . . . Robot Hit Streak 7 | . 4 7 1 . 6 Robot Miss Streak 3 | . 1 3 3 . 3 Penetration Max . | . . . . . . Secondary Targets . | . . . . . . Shots Hit Robots 64 | . 12 32 3 . 17 Core Hits 54 | . 14 33 5 . 2 Critical Kills . | . . . . . . Critical Parts Destroyed . | . . . . . . Critical Strikes . | . . . . . . Melee Attacks 1 | . . . . . 1 Impact . | . . . . . . Slashing 1 | . . . . . 1 Piercing . | . . . . . . Sneak Attacks . | . . . . . . Combat Hostiles . | . . . . . . Follow-up Attacks . | . . . . . . Damage Inflicted 2505 | . 591 1438 317 . 159 Guns 529 | . 105 288 14 . 122 Cannons . | . . . . . . Explosions 1939 | . 486 1150 303 . . Melee 37 | . . . . . 37 Ramming . | . . . . . . Kinetic 529 | . 105 288 14 . 122 Thermal . | . . . . . . Explosive 1939 | . 486 1150 303 . . Electromagnetic . | . . . . . . Impact . | . . . . . . Slashing 37 | . . . . . 37 Piercing . | . . . . . . Highest Corruption 12 | . . . . . 12 Average Corruption 12 | . . . . . 12 Corruption Purged . | . . . . . . Corruption Blocked . | . . . . . . Effects 3 | . . . . . 3 Energy Discharges 2 | . . . . . 2 Data Loss (minor) 1 | . . . . . 1 Overload Shots . | . . . . . . Overflow Damage 144 | . . 144 . . . Projectiles . | . . . . . . Explosions 144 | . . 144 . . . Melee . | . . . . . . Knockbacks . | . . . . . . Impact . | . . . . . . Kinetic . | . . . . . . Secondary . | . . . . . . Self-Inflicted Damage 121 | . 64 57 . . . Shots 4 | . 2 2 . . . Rammed . | . . . . . . Targets Rammed . | . . . . . . Kicked . | . . . . . . Crushed . | . . . . . . Highest Temperature 70 | . 24 70 40 . 64 Average Temperature 16 | . 11 18 17 . 20 Received Heat Transfer 102 | . 12 90 . . . Siege Activations . | . . . . . . Martial Activations . | . . . . . . Shielding Activations . | . . . . . . Robots Disrupted . | . . . . . . Combat Hostiles . | . . . . . . Robots Corrupted . | . . . . . . Combat Hostiles . | . . . . . . Parts Fried . | . . . . . . Impact Corruptions . | . . . . . . Robots Melted . | . . . . . . Combat Hostiles . | . . . . . . Parts Melted . | . . . . . . Heat Transferred . | . . . . . . Parts Sabotaged . | . . . . . . Parts Stolen . | . . . . . . Parts Stripped . | . . . . . . Power Chain Reactions . | . . . . . . Alert | -11 -10 -9 -9 -9 -8 ------- Run | Yrd Mat Mat Min Exi Min Maximum Alert Level 1 | . . 1 1 . . Low Security (%) 93 | 100 100 83 93 . 100 Level 1 6 | . . 16 6 . . Level 2 . | . . . . . . Level 3 . | . . . . . . Level 4 . | . . . . . . Level 5 . | . . . . . . High Security . | . . . . . . Max Security . | . . . . . . Peak Influence 332 | . 170 332 208 . 2 Initial 126 | . . 57 126 . . Average 64 | . 34 80 153 . . Influence Increases 845 | . 222 502 118 . 3 Destroy 0b10 Robot/C 400 | . 80 260 60 . . Destroy 0b10 Robot/NC 85 | . 25 55 5 . . Destroy Leader 78 | . 18 50 10 . . Successful Hack 4 | . . 4 . . . Disable Machine 150 | . 30 90 30 . . Destroy Structure 98 | . 54 28 13 . 3 Lose Combat Pursuer 30 | . 15 15 . . . Influence Decreases 845 | . 86 314 318 124 3 Entered New Map 401 | . . 79 198 124 . Time Decay 412 | . 86 205 120 . 1 Lost Part 32 | . . 30 . . 2 Squads Dispatched 1 | . . 1 . . . Investigation . | . . . . . . Extermination . | . . . . . . Reinforcement 1 | . . 1 . . . Assault . | . . . . . . Garrison . | . . . . . . Intercept . | . . . . . . Searches Triggered . | . . . . . . Construction Impeded 1 | . . 1 . . . Haulers Reinforced . | . . . . . . Active Scanning Responses . | . . . . . . Cargo Convoy Interrupts . | . . . . . . Stealth | -11 -10 -9 -9 -9 -8 --------- Run | Yrd Mat Mat Min Exi Min Distress Signals 2 | . 2 . . . . Communications Jammed . | . . . . . . Distress Signals . | . . . . . . Times Spotted 41 | . 9 20 7 . 5 Peak Tracking Total 20 | . 4 6 20 . 3 Tactical Retreats 3 | . 1 1 . . 1 ECM-based Alert Blocks 2 | . . . . . 2 Traps | -11 -10 -9 -9 -9 -8 ------- Run | Yrd Mat Mat Min Exi Min Traps Triggered 1 | . . 1 . . . Indirectly . | . . . . . . Trap Hack Attempts . | . . . . . . Triggered . | . . . . . . Disarmed . | . . . . . . Reprogrammed . | . . . . . . Reused . | . . . . . . Traps Extracted . | . . . . . . Installed . | . . . . . . Triggered . | . . . . . . Machines | -11 -10 -9 -9 -9 -8 ---------- Run | Yrd Mat Mat Min Exi Min Machines Disabled 10 | . 2 6 2 . . Max in Single Turn 2 | . 1 2 2 . . Machines Repaired . | . . . . . . Machines Dismantled . | . . . . . . Machines Sabotaged . | . . . . . . Overloaded Fab Kills . | . . . . . . Hacking | -11 -10 -9 -9 -9 -8 --------- Run | Yrd Mat Mat Min Exi Min Machines Accessed 4 | . 1 1 . 2 . Terminals 1 | . . 1 . . . Fabricators . | . . . . . . Repair Stations . | . . . . . . Recycling Units 1 | . 1 . . . . Scanalyzers . | . . . . . . Garrison Access . | . . . . . . Total Hacks 4 | . 1 1 . 2 . Successful 4 | . 1 1 . 2 . Failed . | . . . . . . Catastrophic . | . . . . . . Database Lockouts . | . . . . . . Manual 1 | . . . . 1 . Terminals 1 | . . 1 . . . Fabricators . | . . . . . . Repair Stations . | . . . . . . Recycling Units 1 | . 1 . . . . Scanalyzers . | . . . . . . Garrison Access . | . . . . . . Terminal Hacks 3 | . . 1 . 2 . Record 2 | . . 1 . 1 . Proto ID Catalog 1 | . . . . 1 . Fabricator Hacks . | . . . . . . Repair Station Hacks . | . . . . . . Recycling Unit Hacks 1 | . 1 . . . . Report Inventory 1 | . 1 . . . . Scanalyzer . | . . . . . . Garrison Access Hacks . | . . . . . . Unauthorized Hacks . | . . . . . . Terminals . | . . . . . . Fabricators . | . . . . . . Repair Stations . | . . . . . . Recycling Units . | . . . . . . Scanalyzers . | . . . . . . Garrison Access . | . . . . . . Data Cores Recovered . | . . . . . . Used . | . . . . . . Hacking Detections . | . . . . . . Full Trace Events . | . . . . . . Feedback Events . | . . . . . . Feedback Blocked . | . . . . . . Robot Schematics Acquired . | . . . . . . Robots Built . | . . . . . . Authchips . | . . . . . . Time . | . . . . . . Total Robot Build Rating . | . . . . . . Part Schematics Acquired . | . . . . . . Parts Built . | . . . . . . Authchips . | . . . . . . Time . | . . . . . . Total Part Build Rating . | . . . . . . Part Studies Acquired . | . . . . . . Parts Repaired . | . . . . . . Time . | . . . . . . Parts Recycled . | . . . . . . Recycled Matter . | . . . . . . Retrieved Matter . | . . . . . . Retrieved Components . | . . . . . . Parts Scanalyzed . | . . . . . . Part Schematics Acquired . | . . . . . . Parts Damaged . | . . . . . . Bothacking | -11 -10 -9 -9 -9 -8 ------------ Run | Yrd Mat Mat Min Exi Min Used RIF Installer . | . . . . . . Robots Hacked . | . . . . . . Non-combat . | . . . . . . Combat . | . . . . . . Robot Hacks Applied . | . . . . . . Relay Couplers Released . | . . . . . . Fabnet Peak Effective % . | . . . . . . Robots Rewired . | . . . . . . Allies Hacked . | . . . . . . Hacks Repelled . | . . . . . . Allies | -11 -10 -9 -9 -9 -8 -------- Run | Yrd Mat Mat Min Exi Min Total Allies . | . . . . . . Largest Group . | . . . . . . Highest-Rated Group . | . . . . . . Highest-Rated Ally . | . . . . . . Total Orders . | . . . . . . Ally Attacks . | . . . . . . Total Damage . | . . . . . . Kills . | . . . . . . Allies Corrupted . | . . . . . . Allies Melted . | . . . . . . Intel | -11 -10 -9 -9 -9 -8 ------- Run | Yrd Mat Mat Min Exi Min Active Infowar (turns) 1662 | . 14 512 258 652 226 Sensors 1566 | . 14 512 258 652 130 ECM 224 | . . . . . 224 Robot Analysis Total . | . . . . . . Derelict Logs Recovered 1 | . . . 1 . . Drone Launches . | . . . . . . Drone Recoveries . | . . . . . . Exploration | -11 -10 -9 -9 -9 -8 ------------- Run | Yrd Mat Mat Min Exi Min Turns Passed 2151 | 59 444 512 258 652 226 Spaces Moved 1661 | 41 301 252 233 684 150 Core 9 | 7 . 2 . . . Treads . | . . . . . . Legs 561 | 34 301 226 . . . Wheels 1091 | . . 24 233 684 150 Hover . | . . . . . . Flight . | . . . . . . Fastest Speed 50 | 50 120 95 95 95 95 Average Speed 108 | 110 120 151 95 95 98 Slowest Speed 450 | 120 120 450 95 95 110 Overloaded Moves . | . . . . . . Propulsion Burnouts . | . . . . . . Robots Hopped . | . . . . . . Potential Cave-ins 4 | . 4 . . . . Cave-ins Triggered 1 | . . . . . 1 Exploration Rate (%) 39 | 4 40 34 47 93 20 Regions Visited 5 Branch Regions 3 Pre-discovered Areas 3 | . . . 2 1 . Known Exits Taken . | . . . . . . Unknown Exits Taken 5 | 1 1 1 1 1 . Scrap Searched 1 | . . . 1 . . Spaces Dug 20 | . 10 6 . . 4 Terrain Destroyed 126 | . 77 26 19 . 4 Melee . | . . . . . . Projectile 21 | . 11 6 . . 4 AOE 105 | . 66 20 19 . . Terrain Rammed . | . . . . . . Walls Destroyed . | . . . . . . Machines Disabled . | . . . . . . Actions | -11 -10 -9 -9 -9 -8 --------- Run | Yrd Mat Mat Min Exi Min Total 1859 | 54 333 320 266 687 199 Wait 40 | . 3 . 23 . 14 Move 1656 | 40 300 251 232 683 150 Hop . | . . . . . . Pick Up 25 | 8 6 7 2 2 . Fast Attach 1 | . . 1 . . . Attach 18 | 6 1 4 . . 7 Detach 1 | . . . . . 1 Swap 9 | . 2 4 1 . 2 Drop 9 | . . 4 3 2 . Fire 99 | . 21 49 5 . 24 Melee 1 | . . . . . 1 Ram . | . . . . . . Kick . | . . . . . . Crush . | . . . . . . Escape Stasis . | . . . . . . Rewire . | . . . . . . Trap . | . . . . . . Miscellaneous . | . . . . . . Route ------- -11/Scrapyard -10/Materials -9/Materials -9/Mines -9/Exiles (discovered 2 exits: [*Min x2]) -8/Mines History --------- Turn | Location | Event 7 | -11/Scrapyard | Discovered new exit (range 14) 60 | -11/Scrapyard | Entered Materials 302 | -10/Materials | Build established: Mutant 446 | -10/Materials | Discovered new exit (range 13) 504 | -10/Materials | Entered another Materials area 504 | -9/Materials | Evolved 2 slots: Utility x2 981 | -9/Materials | Destroyed 9 combat bots 992 | -9/Materials | Discovered new exit (range 16) 1016 | -9/Materials | Entered Mines 1017 | -9/Mines | Learned location of Storage (-8) 1019 | -9/Mines | Found DCF Scrap (14 items) 1057 | -9/Mines | Learned location of Zion (-6) 1170 | -9/Mines | Assembled infested the area 1191 | -9/Mines | Met 8R-AWN 1270 | -9/Mines | Discovered new exit (range 5) 1274 | -9/Mines | Entered Exiles 1299 | -9/Exiles | Welcomed by 8R-AWN 1315 | -9/Exiles | Met EX-HEX 1368 | -9/Exiles | Met EX-DEC 1398 | -9/Exiles | Visited The Gauntlet 1592 | -9/Exiles | Met EX-BIN 1608 | -9/Exiles | Aligned with FarCom system 1609 | -9/Exiles | Given EX-Vault access code 1653 | -9/Exiles | Opened EX-Vault 1662 | -9/Exiles | Found Longsword +1 1680 | -9/Exiles | Warned to stay clear of 0b10 Research branches 1780 | -9/Exiles | Discovered new exit (range 14) 1864 | -9/Exiles | Learned about 8R-AWN's background 1886 | -9/Exiles | Discovered new exit (range 15) 1926 | -9/Exiles | Left Exiles lab with Longsword +1 1926 | -9/Exiles | Entered Mines 2056 | -8/Mines | Crushed by falling debris 2056 | -8/Mines | Core integrity fell below 50% 2056 | -8/Mines | System corruption reached 10% 2087 | -8/Mines | Lost 3 parts (1n1u1w) 2133 | -8/Mines | Core integrity fell below 20% 2152 | -8/Mines | Destroyed by L-31 Rogue with Katana Last Messages --------------- I'm on board with that. EXIT=FOUND LOCATION=UNKNOWN GOAL=ESCAPE Receiving FarCom transmissions... The unstable cave ceiling collapses. Crushed by falling debris. Sensor Array destroyed. System corrupted by crushing effect (+5). Mni. Grenade Launcher destroyed. System corrupted by crushing effect (+2). Wheel destroyed. System corrupted by crushing effect (+5). System corrupted: Component data lost. System corrupted: Energy discharge (-53). Imp. Ion Engine severed. Ion Engine severed. Wheel severed. Hrd. Light Armor Plating destroyed. System corrupted: Energy discharge (-23). Map ----- +----------------------------------------------------+ | ?????# #????????????????????????? | | ?????# #????????????????????????? | | ?????# #????????????????????????? | | ?????# #????????????????????????? | | ?????# #????????????????????????? | | ?????# ##########???????????????? | | ?????# #???????????????? | | ????## ######## #???????????????? | | ???## #####??# #???????????????? | | ???# ##?# #???????????????? | | ???# """ ### #???????????????? | | ???## """ ## #???????????????? | | ????# """ ## #???????????????? | | ????# ### #???????????????? | | ????# ##?# #???????????????? | | ????# ##??# #???????????????? | | ????# ## #???# #???????????????? | | ????# ?# #???# #???????????????? | | ????# ? #???# ####????????????? | | ????# ?###???# #????????????? | | ????# ????????#### #????????????? | | ????# ??????????# #????????????? | | ????# ########### ##???????????? | | ????# ##??????????? | | ????####=######### ##?????????? | | ???????#@#???????## ##????????? | | ???????#l#???????## #????????? | | ???????#g#???????# ##???????? | | ???????g ???????# ##??????? | | ??????? ??????## ##?????? | | ???????"""??????# #?????? | | ???????"""??????# #?????? | | ?????? """ ?????# ##????? | | ?????? """ ?????# ##???? | | ?????? ??? ?????# #???? | | ??????#???#?????# ##??? | | ????????????????## ###? | | ?????????????????## ### ## | | ??????????????????## ###?## # | | ???????????????????####????# | | ???????????????????????????## | | ????????????????????????????## | | ?????????????????????????????# | | ?????????????????????????????# | | ?????????????????????????????## | | ??????????????????????????????### | | ????????????????????????????????? | | ????????????????????????????????? | | ????????????????????????????????? | | ????????????????????????????????? | +----------------------------------------------------+ Best States ------------- Heat Dissipation 28 Energy Generation 12 Energy Capacity 265 Matter Stores 294 Matter Capacity 300 Sight Range 16 Robot Scan Range 14 Terrain Scan Density 10 ECM Strength 1 Armor Coverage 300 Evasion (%) 55 Item Schematics ----------------- None Robot Schematics ------------------ None Fabricated ------------ Nothing Repaired ---------- Nothing Studied --------- None Alien Tech Used ----------------- None Achievements -------------- Hunted Challenges ------------ None Game ------ Seed EmergencyDecoyImpeller Manual? 0 Play Time 00:30:43 Cumulative 24.0 hours Start 2026.09.11 @ 01:27:33 End 2026.09.11 @ 01:59:10 Sessions 1 Manual Loads 0 Difficulty Rogue Special Mode None Game No. 34 Rogue 34 Adventurer 0 Explorer 0 Win Type - Total 0 Types 0/0/0/0/0/0/0/0/0/0 Lore% 22 Gallery% 19 Achievement% 15 Wizard Run 0 Options --------- Layout 1 ASCII 0 Keyboard 0 Movement Mouse Keybinds 0 Fullscreen 1 Font 16/SmallcapsGlow Map View 50x40 Zoom Use 0% Tactical HUD 0 Map Filters NONE Filters NONE Steam SD RUN: 8dd5e4bf-8af6-4e96-9814-f5b23af79144